Cogmind - Beta 10.2 --- EXPLORER MODE // 2021.10.17 @ 15:01:46 Player: Ruki Result: Destroyed by G-34 Mercenary with Small Laser Performance ------------- Evolutions (1) 500 Regions Visited (3) 600 Robots Destroyed (12) 60 Value Destroyed (355) 355 Prototype IDs (0) 0 Alien Tech Used (0) 0 Bonus (0) 0 TOTAL SCORE: 1515 Bonus ------- None Cogmind --------- Core Integrity 0/400 Matter 300/300 Energy 99/100 System Corruption 0% Temperature Cool (6) Movement Core (150) Ox2 Location -9/Storage Parts ------- > --- POWER (2) -------- (None) > --- PROPULSION (2) --- (None) > --- UTILITY (3) ------ Medium Storage Unit Core Shielding > --- WEAPON (3) ------- (None) > --- INVENTORY (8) ---- Improved Heat Sink Medium Battery (200) Medium Matter Pod (100) Targeting Computer Core Shielding Field Recycling Unit (0) Peak State ------------ > --- POWER ------------ Light Ion Engine Light Nuclear Core > --- PROPULSION ------- Aluminum Leg Aluminum Leg > --- UTILITY ---------- Small Storage Unit Medium Storage Unit Core Shielding > --- WEAPON ----------- Particle Gun Assault Rifle Grenade Launcher > --- INVENTORY -------- Improved Heat Sink Medium Battery Medium Matter Pod Medium Matter Pod Targeting Computer Core Shielding Autogun [Rating: 14] Favorites ----------- Power Light Ion Engine Engine Light Ion Engine Power Core Light Nuclear Core Propulsion Aluminum Leg Leg Aluminum Leg Utility Medium Storage Unit Storage Medium Storage Unit Processor Signal Interpreter Protection Core Shielding Weapon Grenade Launcher Energy Gun Medium Laser Ballistic Gun Assault Rifle Launcher Grenade Launcher Impact Weapon Maul Build | -11 -10 -9 -9 ------- Run | Scr Mat Mat Sto Slots Evolved 3 | . 1 2 . Power 1 | . 1 . . Propulsion . | . . . . Utility 1 | . . 1 . Weapon 1 | . . 1 . Parts Attached 20 | 4 9 3 4 Power 4 | 1 2 1 . Engine 3 | 1 1 1 . Core 1 | . 1 . . Reactor . | . . . . Propulsion 2 | . 2 . . Treads . | . . . . Leg 2 | . 2 . . Wheel . | . . . . Hover . | . . . . Flight . | . . . . Utility 6 | 2 2 1 1 Device . | . . . . Storage 2 | 1 . 1 . Processor 1 | . 1 . . Hackware . | . . . . Protection 3 | 1 1 . 1 Artifact . | . . . . Weapon 8 | 1 3 1 3 Energy Gun 3 | 1 . 1 1 Energy Cannon . | . . . . Ballistic Gun 3 | . 2 . 1 Ballistic Cannon . | . . . . Launcher 1 | . 1 . . Special Weapon . | . . . . Impact Weapon 1 | . . . 1 Slashing Weapon . | . . . . Piercing Weapon . | . . . . Special Melee Weapon . | . . . . Unidentified Prototypes . | . . . . Parts Lost 11 | . . 1 10 Power 3 | . . 1 2 Propulsion 2 | . . . 2 Utility 1 | . . . 1 Weapon 5 | . . . 5 Highest Loss Streak 9 | . . 1 9 Average Slot Usage (%) 90 | . 95 92 80 Engine 13 | . 18 9 8 Core 6 | . 4 10 7 Leg 20 | . 23 20 16 Storage 16 | . 12 20 19 Protection 10 | . 11 10 10 Energy Gun 3 | . 5 3 . Ballistic Gun 9 | . 10 10 8 Launcher 6 | . 6 10 3 Impact Weapon 2 | . . . 7 Naked Turns . | . . . . Heaviest Build 29 | 14 22 29 29 Greatest Support 20 | 3 20 20 20 Greatest Overweight (x) 4 | 4 4 1 4 Average Overweight (x) 1 | 3 . 1 1 Largest Inventory Capacity 10 | 8 8 10 10 Average Capacity 8 | 7 8 10 9 Most Carried 8 | 4 8 8 8 Average Carried 6 | 2 5 6 7 Final Capacity 10 | 8 8 10 8 Final Carried 8 | 3 8 7 6 Class Distribution -------------------- 95% | Hacker-Mutant 4% | Hacker-Bomber Dominant Class ---------------- Hacker-Mutant | -10/Materials Hacker-Mutant | -9/Materials Hacker-Mutant | -9/Storage Resources | -11 -10 -9 -9 ----------- Run | Scr Mat Mat Sto Matter Collected 614 | 240 155 73 146 Remotely . | . . . . Salvage Created 335 | . 133 . 202 Parts 18 | . 8 . 10 Haulers Intercepted . | . . . . Recyclers Shooed . | . . . . Parts Field Recycled . | . . . . Retrieved Matter . | . . . . Parts Self-Destructed . | . . . . Prevented . | . . . . Kills | -11 -10 -9 -9 ------- Run | Scr Mat Mat Sto Combat Hostiles Destroyed 11 | . 4 1 6 Melee 4 | . . . 4 Guns 1 | . . . 1 AOE 5 | . 4 1 . Classes Destroyed 4 | . 1 1 2 Operator 1 | . . . 1 Swarmer 3 | . . . 3 Grunt 7 | . 4 . 3 Sentry 1 | . . 1 . Best Kill Streak 4 | . 2 1 4 Combat Bots Only 4 | . 2 1 4 Max Kills in Single Turn 2 | . 2 1 1 Gunslinging . | . . . . Exploded 2 | . 2 1 . Melee 1 | . . . 1 Uniques/NPCs Destroyed . | . . . . Combat | -11 -10 -9 -9 -------- Run | Scr Mat Mat Sto Damage Taken 1426 | . 79 185 1162 Core 410 | . 6 16 388 Absorbed by Shields . | . . . . Core Remaining (%) 98 | 100 97 . . Volleys Fired 48 | . 24 14 10 Largest 2 | . 1 1 2 Hottest 88 | . 30 30 88 Shots Fired 49 | . 24 14 11 Gun 39 | . 21 7 11 Cannon . | . . . . Launcher 10 | . 3 7 . Special . | . . . . Kinetic 36 | . 21 7 8 Thermal 3 | . . . 3 Explosive 10 | . 3 7 . Electromagnetic . | . . . . Robot Hit Streak 24 | . 10 24 5 Robot Miss Streak 1 | . 1 . 1 Penetration Max . | . . . . Secondary Targets . | . . . . Shots Hit Robots 69 | . 22 14 33 Core Hits 24 | . 10 3 11 Critical Hits . | . . . . Critical Kills . | . . . . Critical Parts Destroyed . | . . . . Melee Attacks 26 | . . . 26 Impact 26 | . . . 26 Slashing . | . . . . Piercing . | . . . . Sneak Attacks 1 | . . . 1 Combat Hostiles . | . . . . Follow-up Attacks . | . . . . Damage Inflicted 1455 | . 480 210 765 Guns 414 | . 185 88 141 Cannons . | . . . . Explosions 396 | . 278 118 . Melee 613 | . . . 613 Ramming 32 | . 17 4 11 Kinetic 366 | . 185 88 93 Thermal 48 | . . . 48 Explosive 396 | . 278 118 . Electromagnetic . | . . . . Impact 613 | . . . 613 Slashing . | . . . . Piercing . | . . . . Highest Corruption . | . . . . Average Corruption . | . . . . Corruption Purged . | . . . . Overload Shots . | . . . . Overflow Damage 49 | . . . 49 Projectiles . | . . . . Explosions . | . . . . Melee 49 | . . . 49 Knockbacks . | . . . . Impact . | . . . . Kinetic . | . . . . Secondary . | . . . . Self-Inflicted Damage 12 | . 8 . 4 Shots . | . . . . Rammed 11 | . 3 . 8 Targets Rammed 12 | . 3 1 8 Kicked 1 | . . 1 . Crushed . | . . . . Highest Temperature 125 | . 20 20 125 Average Temperature 28 | . 8 9 73 Received Heat Transfer 795 | . 42 90 663 Siege Activations . | . . . . Robots Corrupted . | . . . . Combat Hostiles . | . . . . Parts Fried 1 | . . . 1 Impact Corruptions 5 | . . . 5 Robots Melted . | . . . . Combat Hostiles . | . . . . Parts Melted . | . . . . Heat Transferred 111 | . . . 111 Parts Sabotaged . | . . . . Parts Stolen . | . . . . Parts Stripped . | . . . . Power Chain Reactions . | . . . . Missiles Intercepted . | . . . . Alert | -11 -10 -9 -9 ------- Run | Scr Mat Mat Sto Peak Influence 227 | . 80 74 227 Initial 24 | . . 24 22 Average 38 | . 10 42 94 Maximum Alert Level 1 | . . . 1 Low Security (%) 99 | 100 100 100 96 Level 1 . | . . . 3 Level 2 . | . . . . Level 3 . | . . . . Level 4 . | . . . . Level 5 . | . . . . High Security . | . . . . Max Security . | . . . . Squads Dispatched 1 | . 1 . . Investigation 1 | . 1 . . Extermination . | . . . . Reinforcement . | . . . . Assault . | . . . . Garrison . | . . . . Intercept . | . . . . Construction Impeded . | . . . . Haulers Reinforced . | . . . . Stealth | -11 -10 -9 -9 --------- Run | Scr Mat Mat Sto Distress Signals 1 | . . 1 . Communications Jammed . | . . . . Distress Signals . | . . . . Times Spotted 23 | . 8 3 12 Peak Tracking Total 8 | . 3 2 8 Tactical Retreats 2 | . . . 2 Traps | -11 -10 -9 -9 ------- Run | Scr Mat Mat Sto Traps Triggered 2 | . 2 . . Indirectly . | . . . . Trap Hack Attempts . | . . . . Triggered . | . . . . Disarmed . | . . . . Reprogrammed . | . . . . Reused . | . . . . Traps Extracted . | . . . . Installed . | . . . . Triggered . | . . . . Machines | -11 -10 -9 -9 ---------- Run | Scr Mat Mat Sto Machines Disabled . | . . . . Max in Single Turn . | . . . . Machines Sabotaged . | . . . . Garrisons Compromised . | . . . . Overloaded Fab Kills . | . . . . Fab Network Shutdowns . | . . . . Hacking | -11 -10 -9 -9 --------- Run | Scr Mat Mat Sto Machines Accessed 7 | . 3 2 2 Terminals 6 | . 3 2 1 Fabricators . | . . . . Repair Stations 1 | . . . 1 Recycling Units . | . . . . Scanalyzers . | . . . . Garrison Access . | . . . . Total Hacks 17 | . 8 5 4 Successful 13 | . 5 5 3 Failed 4 | . 3 . 1 Catastrophic 1 | . 1 . . Database Lockouts . | . . . . Manual 4 | . 2 1 1 Terminals 16 | . 8 5 3 Fabricators . | . . . . Repair Stations 1 | . . . 1 Recycling Units . | . . . . Scanalyzers . | . . . . Garrison Access . | . . . . Terminal Hacks 13 | . 5 5 3 Record 9 | . 4 2 3 Alert Level 1 | . . 1 . Locate Traps 1 | . . 1 . Dispatch Records 1 | . . 1 . Surveillance Status 1 | . 1 . . Fabricator Hacks . | . . . . Repair Station Hacks . | . . . . Recycling Unit Hacks . | . . . . Scanalyzer . | . . . . Garrison Access Hacks . | . . . . Unauthorized Hacks . | . . . . Terminals . | . . . . Fabricators . | . . . . Repair Stations . | . . . . Recycling Units . | . . . . Scanalyzers . | . . . . Garrison Access . | . . . . Data Cores Recovered . | . . . . Used . | . . . . Hacking Detections 4 | . 1 2 1 Full Trace Events 2 | . 1 . 1 Feedback Events . | . . . . Feedback Blocked . | . . . . Robot Schematics Acquired . | . . . . Robots Built . | . . . . Matter . | . . . . Time . | . . . . Total Robot Build Rating . | . . . . Part Schematics Acquired . | . . . . Parts Built . | . . . . Matter . | . . . . Time . | . . . . Total Part Build Rating . | . . . . Parts Repaired . | . . . . Time . | . . . . Parts Recycled . | . . . . Recycled Matter . | . . . . Retrieved Matter . | . . . . Retrieved Components . | . . . . Parts Scanalyzed . | . . . . Part Schematics Acquired . | . . . . Parts Damaged . | . . . . Bothacking | -11 -10 -9 -9 ------------ Run | Scr Mat Mat Sto Used RIF Installer . | . . . . Robots Hacked . | . . . . Non-combat . | . . . . Combat . | . . . . Robot Hacks Applied . | . . . . Relay Couplers Released . | . . . . Robots Rewired . | . . . . Allies Hacked . | . . . . Hacks Repelled . | . . . . Allies | -11 -10 -9 -9 -------- Run | Scr Mat Mat Sto Total Allies . | . . . . Largest Group . | . . . . Highest-Rated Group . | . . . . Highest-Rated Ally . | . . . . Total Orders . | . . . . Ally Attacks . | . . . . Total Damage . | . . . . Kills . | . . . . Allies Corrupted . | . . . . Allies Melted . | . . . . Intel | -11 -10 -9 -9 ------- Run | Scr Mat Mat Sto Robot Analysis Total . | . . . . Derelict Logs Recovered . | . . . . Drone Launches . | . . . . Drone Recoveries . | . . . . Exploration | -11 -10 -9 -9 ------------- Run | Scr Mat Mat Sto Turns Passed 1567 | 188 623 347 409 Spaces Moved 876 | 87 401 207 181 Core 127 | 87 15 . 25 Treads . | . . . . Legs 749 | . 386 207 156 Wheels . | . . . . Hover . | . . . . Flight . | . . . . Fastest Speed 50 | 50 120 150 150 Average Speed 148 | 204 134 150 151 Slowest Speed 250 | 250 250 150 250 Overloaded Moves . | . . . . Propulsion Burnouts . | . . . . Robots Hopped . | . . . . Cave-ins Triggered . | . . . . Exploration Rate (%) 23 | 5 47 19 21 Regions Visited 3 Branch Regions 1 Pre-discovered Areas 1 | . . . 1 Known Exits Taken 3 | 1 1 1 . Unknown Exits Taken . | . . . . Scrap Searched . | . . . . Spaces Dug . | . . . . Terrain Destroyed 33 | . 29 4 . Melee . | . . . . Projectile . | . . . . AOE 33 | . 29 4 . Terrain Rammed . | . . . . Walls Destroyed . | . . . . Machines Disabled . | . . . . Actions | -11 -10 -9 -9 --------- Run | Scr Mat Mat Sto Total 1034 | 99 463 230 242 Wait 23 | 2 9 . 12 Move 873 | 86 400 206 181 Hop . | . . . . Pick Up 25 | 7 13 4 1 Fast Attach . | . . . . Attach 16 | 4 7 3 2 Detach 2 | . 2 . . Swap 4 | . 2 . 2 Drop 5 | . 3 2 . Fire 48 | . 24 14 10 Melee 26 | . . . 26 Ram 7 | . . . 7 Kick 5 | . 3 1 1 Crush . | . . . . Escape Stasis . | . . . . Rewire . | . . . . Trap . | . . . . Miscellaneous . | . . . . Route ------- -11/Scrapyard -10/Materials (discovered 3 exits: *Mat x2 / *Min) -9/Materials -9/Storage History --------- Turn | Location | Event 14 | -11/Scrapyard | Identified exit to Materials 14 | -11/Scrapyard | Discovered exit to Materials (range 15) 189 | -11/Scrapyard | Entered Materials 189 | -10/Materials | Evolved 1 slot: Power x1 232 | -10/Materials | Identified exit to Mines 232 | -10/Materials | Discovered exit to Mines (range 16) 324 | -10/Materials | Build established: Hacker-Mutant 623 | -10/Materials | Identified exit to Materials 623 | -10/Materials | Discovered exit to Materials (range 15) 768 | -10/Materials | Discovered exit to Materials (range 9) 812 | -10/Materials | Entered another Materials area 812 | -9/Materials | Evolved 2 slots: Utility x1, Weapon x1 1071 | -9/Materials | Identified exit to Storage 1071 | -9/Materials | Discovered exit to Storage (range 6) 1159 | -9/Materials | Entered Storage 1257 | -9/Storage | Learned location of Armory (-3) 1514 | -9/Storage | Core integrity fell below 50% 1528 | -9/Storage | Core integrity fell below 20% 1566 | -9/Storage | Lost 9 parts (2p2n1u4w) 1568 | -9/Storage | Destroyed by G-34 Mercenary with Small Laser Last Messages --------------- 01495_ Slammed into Y-45 Defender. 01496_ R-06 Scavenger collects Hacking Suite. 01498_ Slammed into Y-45 Defender. 01499_ R-06 Scavenger inserts Hacking Suite into recycling unit. 01500_ Recycling unit begins recycling process. 01500_ Slammed into Y-45 Defender. 01503_ R-06 Scavenger collects Sml. Laser. 01503_ Slammed into G-34 Mercenary. 01506_ Acquired 10 matter. 01508_ Acquired 4 matter. 01513_ Particle Gun destroyed. 01515_ Acquired 4 matter. 01519_ Acquired 2 matter. 01519_ Autogun destroyed. 01521_ Slammed into Y-45 Defender. 01522_ Acquired 3 matter. 01524_ Slammed into Y-45 Defender. 01525_ Acquired 1 matter. 01526_ Slammed into Y-45 Defender. 01535_ Sml. Storage Unit destroyed. Map ----- +----------------------------------------------------+ | | | | | | | | | | | | | | | | | | | #######????????????????????????????? | | """%#####????????????????????????? | | "Y"%# #????????????????????????? | | # #????????????????????????? | | %%# #????###########?????????? | | #/##/####+##???# #???####### | | % #???# ##### ! # | | ###### #???# # # * # | | # #???# # # # | | ???" + #???# " "" # # # | | ???" ##### #???# "R"" # # # | | ???" ????# ##### """ # # # | | ???"?????# ## # + # | | ?????????# ###+##+##### #[ # | | ??????#### Y Y # # | | + k Yg + !# | | ########### @ # # | | ???????????????### ####### # # | | ?????????????????#+#?????# ####### | | ???????????????????????# #?????? | | ???????????????????????# #?????? | | ??????????????????????# #?????? | | ?????????????????????????+ #?????? | | ?????????????????????????# #?????? | | ?????????????????????????# #?????? | | ?????????????????????????# +?????? | | ?????????????????????????# #?????? | | ?????????????????????????? #?????? | | ?????????????????????????? #?????? | | ?????????????????????????? #?????? | | ???????????????????????????????????? | | ???????????????????????????????????? | | ???????????????????????????????????? | | ???????????????????????????????????? | | ???????????????????????????????????? | | ???????????????????????????????????? | | ???????????????????????????????????? | | ???????????????????????????????????? | | ???????????????????????????????????? | | ???????????????????????????????????? | | ???????????????????????????????????? | +----------------------------------------------------+ Best States ------------- Heat Dissipation 28 Energy Generation 19 Energy Capacity 185 Matter Stores 300 Matter Capacity 300 Sight Range 16 Terrain Scan Density 10 Resistance: KI 35 Resistance: TH 35 Resistance: EX 35 Resistance: EM 35 Resistance: I 35 Resistance: S 35 Resistance: P 35 Core Shielding 20 Evasion (%) 50 Offensive Hacking 20 Item Schematics ----------------- None Robot Schematics ------------------ None Fabricated ------------ Nothing Alien Tech Used ----------------- None Achievements -------------- None Challenges ------------ None Game ------ Seed RocketRagnarokSplitter Manual? 0 Play Time 00:33:05 Cumulative 2.8 hours Start 2021.10.17 @ 14:29:34 End 2021.10.17 @ 15:01:46 Sessions 1 Manual Loads 0 Difficulty Explorer Special Mode None Game No. 5 Rogue 1 Adventurer 0 Explorer 4 Win Type - Total 0 Types 0/0/0/0/0/0/0/0/0 Lore% 2 Gallery% 6 Achievement% 5 Wizard Run 0 Options --------- ASCII 1 Keyboard 1 Movement Numpad Keybinds 0 Fullscreen 1 Font 18/SmallcapsGlow Map View 76x50 Tactical HUD 1 Map Filters NONE Filters NONE Steam 1 RUN: 467d8f9b-badb-4d16-92d1-a97b3b8206fb